fUST/lending_fUST_20240227
["ID","MTS","AMOUNT","RATE_DAILY","PERIOD"]
[315416659,1709021444225,-500.0,0.00019726,2]
[315416662,1709021444235,-500.0,0.00019726,2]
[315416663,1709021444244,-500.0,0.00019726,2]
[315416666,1709021444253,-500.0,0.00019726,2]
[315416667,1709021444263,-500.0,0.00019726,2]
[315416670,1709021444273,-1504.02,0.00019726,2]
[315416672,1709021444282,-500.0,0.00019726,2]
[315416673,1709021444293,-500.0,0.00019726,2]
[315416675,1709021444303,-500.0,0.00019726,2]
[315416678,1709021444312,-500.0,0.00019726,2]
[315416680,1709021444321,-212.44196053,0.00019726,2]
[315416681,1709021444330,-1709.67,0.00019726,2]
[315416683,1709021444339,-395.16181797,0.00019726,2]
[315416685,1709021444348,-500.0,0.00019726,2]
[315416688,1709021444358,-500.0,0.00019726,2]
[315416689,1709021444367,-500.0,0.00019726,2]
[315416692,1709021444377,-524.16,0.00019726,2]
[315416694,1709021444386,-317.207108,0.00019726,2]
[315416696,1709021444395,-1626.61,0.00019726,2]
[315416698,1709021444404,-500.0,0.00019726,2]
[315416699,1709021444414,-848.22,0.00019726,2]
[315416701,1709021444424,-500.0,0.00019726,2]
[315416703,1709021444435,-500.0,0.00019726,2]
[315416706,1709021444444,-1376.52,0.00019726,2]
[315416708,1709021444454,-500.0,0.00019726,2]
[315416710,1709021444463,-500.0,0.00019726,2]
[315416712,1709021444473,-18293.64,0.00019726,2]
[315416714,1709021444482,-500.0,0.00019726,2]
[315416716,1709021444492,-500.0,0.00019726,2]
[315416718,1709021444501,-968.79,0.00019726,2]
[315416720,1709021444510,-500.0,0.00019726,2]
[315416722,1709021444519,-302.1536889,0.00019726,2]
[315416724,1709021444528,-315.7665185,0.00019726,2]
[315416725,1709021444542,-961.57,0.00019726,2]
[315416728,1709021444552,-500.0,0.00019726,2]
[315416730,1709021444561,-694.35,0.00019726,2]
[315416732,1709021444570,-500.0,0.00019726,2]
[315416734,1709021444579,-500.0,0.00019726,2]
[315416736,1709021444588,-500.0,0.00019726,2]
[315416738,1709021444599,-728.43,0.00019726,2]
[315416740,1709021444609,-500.0,0.00019726,2]
[315416742,1709021444618,-9364.32,0.00019726,2]
[315416743,1709021444627,-500.0,0.00019726,2]
[315416745,1709021444636,-1356.05,0.00019726,2]
[315416748,1709021444645,-500.0,0.00019726,2]
[315416750,1709021444655,-1053.2,0.00019726,2]
[315416752,1709021444664,-500.0,0.00019726,2]
[315416754,1709021444673,-500.0,0.00019726,2]
[315416755,1709021444682,-500.0,0.00019726,2]
[315416758,1709021444692,-299.44952129,0.00019726,2]
[315416759,1709021444701,-500.0,0.00019726,2]
[315416761,1709021444710,-3787.63,0.00019726,2]
[315416763,1709021444720,-18667.35,0.00019726,2]
[315416765,1709021444729,-6979.36,0.00019726,2]
[315416767,1709021444739,-500.0,0.00019726,2]
[315416769,1709021444749,-762.61,0.00019726,2]
[315416771,1709021444758,-2431.52,0.00019726,2]
[315416773,1709021444767,-466.40052004,0.00019726,2]
[315416775,1709021444776,-4664.63,0.00019726,2]
[315416777,1709021444786,-500.0,0.00019726,2]
[315416779,1709021444795,-1390.41,0.00019726,2]
[315416781,1709021444804,-401.01611644,0.00019726,2]
[315416783,1709021444814,-500.0,0.00019726,2]
[315416785,1709021444823,-2382.51,0.00019726,2]
[315416787,1709021444833,-500.0,0.00019726,2]
[315416789,1709021444842,-1795.12,0.00019726,2]
[315416791,1709021444851,-1002.42085392,0.00019726,2]
[315416793,1709021444860,-500.0,0.00019726,2]
[315416795,1709021444870,-500.0,0.00019726,2]
[315416798,1709021444879,-500.0,0.00019726,2]
[315416801,1709021444888,-3077.62,0.00019726,2]
[315416803,1709021444898,-500.0,0.00019726,2]
[315416805,1709021444907,-3562.24,0.00019726,2]
[315416807,1709021444916,-644.23,0.00019726,2]
[315416809,1709021444925,-1853.52,0.00019726,2]
[315416811,1709021444934,-502.32182453,0.00019726,2]
[315416813,1709021444944,-500.0,0.00019726,2]
[315416815,1709021444954,-1921.56,0.00019726,2]
[315416817,1709021444963,-500.0,0.00019726,2]
[315416819,1709021444971,-651.04,0.00019726,2]
[315416821,1709021444981,-500.0,0.00019726,2]
[315416823,1709021444990,-500.0,0.00019726,2]
[315416825,1709021444999,-369.76023936,0.00019726,2]
[315416827,1709021445009,-1690.76,0.00019726,2]
[315416829,1709021445018,-500.0,0.00019726,2]
[315416831,1709021445027,-1869.88,0.00019726,2]
[315416833,1709021445037,-500.0,0.00019726,2]
[315416835,1709021445047,-500.0,0.00019819,2]
[315416837,1709021445056,-1789.42914096,0.00019868,2]
[315416839,1709021445066,-1459.24829283,0.00019888,2]
[315416841,1709021445075,-8231.22000589,0.0001989,2]
[315416843,1709021445084,-500.0,0.00019942,2]
[315416845,1709021445093,-1626.45,0.00019997,2]
[315416847,1709021445102,-160.0,0.00019999,2]
[315416849,1709021445110,-1626.45,0.00019999,2]
[315416851,1709021445119,-1626.45,0.00019999,2]
[315416853,1709021445128,-1626.45,0.00019999,2]
[315416855,1709021445138,-1626.45,0.00019999,2]
[315416857,1709021445146,-1626.48258347,0.00019999,2]
[315416859,1709021445155,-500.0,0.00019999,2]
[315416861,1709021445164,-500.0,0.0002,2]
[315416863,1709021445174,-688.24344223,0.0002,2]
[315416865,1709021445184,-733.11,0.0002,2]
[315416867,1709021445193,-500.0,0.0002,2]
[315416869,1709021445202,-500.0,0.0002,2]
[315416871,1709021445211,-500.0,0.0002,2]
[315416873,1709021445220,-500.0,0.0002,2]
[315416875,1709021445230,-500.0,0.0002,2]
[315416877,1709021445240,-501.70867165,0.0002,2]
[315416879,1709021445250,-1333.94,0.0002,2]
[315416881,1709021445259,-500.0,0.0002,2]
[315416883,1709021445269,-500.0,0.0002,2]
[315416885,1709021445278,-151.0,0.0002,2]
[315416887,1709021445287,-500.0,0.0002,2]
[315416889,1709021445296,-500.0,0.0002,2]
[315416892,1709021445311,-741.17,0.0002,2]
[315416894,1709021445325,-151.144151,0.0002,2]
[315416896,1709021445334,-1512.61,0.0002,2]
[315416898,1709021445344,-500.0,0.0002,2]
[315416900,1709021445353,-541.32,0.0002,2]
[315416902,1709021445363,-277.142699,0.0002,2]
[315416904,1709021445372,-824.75,0.0002,2]
[315416906,1709021445382,-180.911797,0.0002,2]
[315416909,1709021445392,-3542.19,0.0002,2]
[315416911,1709021445401,-180.911797,0.0002,2]
[315416913,1709021445411,-548.95221423,0.0002,2]
[315416914,1709021445424,-500.0,0.0002,2]
[315416917,1709021445434,-1510.02,0.0002,2]
[315416919,1709021445443,-2530.06,0.0002,2]
[315416921,1709021445453,-500.0,0.0002,2]
[315416923,1709021445464,-586.59,0.0002,2]
[315416925,1709021445473,-500.0,0.0002,2]
[315416927,1709021445482,-248.463446,0.0002,2]
[315416929,1709021445492,-500.0,0.0002,2]
[315416931,1709021445501,-500.0,0.0002,2]
[315416933,1709021445512,-660.54,0.0002,2]
[315416935,1709021445522,-500.0,0.0002,2]
[315416937,1709021445531,-333.04255885,0.0002,2]
[315416939,1709021445542,-614.93,0.0002,2]
[315416941,1709021445551,-500.0,0.0002,2]
[315416943,1709021445561,-500.0,0.0002,2]
[315416945,1709021445570,-500.0,0.0002,2]
[315416947,1709021445579,-151.584815,0.0002,2]
[315416949,1709021445589,-1504.02,0.0002,2]
[315416951,1709021445598,-500.0,0.0002,2]
[315416953,1709021445608,-500.0,0.0002,2]
[315416955,1709021445617,-500.0,0.0002,2]
[315416957,1709021445627,-500.0,0.0002,2]
[315416959,1709021445636,-1443.405726,0.0002,2]
[315416961,1709021445645,-1443.405726,0.0002,2]
[315416963,1709021445655,-500.0,0.0002,2]
[315416965,1709021445664,-1709.67,0.0002,2]
[315416967,1709021445674,-500.0,0.0002,2]
[315416969,1709021445683,-552.56513057,0.0002,2]
[315416971,1709021445693,-524.16,0.0002,2]
[315416973,1709021445702,-1626.61,0.0002,2]
[315416976,1709021445712,-500.0,0.0002,2]
[315416977,1709021445721,-848.22,0.0002,2]
[315416979,1709021445730,-500.0,0.0002,2]
[315416982,1709021445740,-378.226304,0.0002,2]
[315416984,1709021445749,-500.0,0.0002,2]
[315416986,1709021445758,-378.226304,0.0002,2]
[315416988,1709021445767,-1376.52,0.0002,2]
[315416990,1709021445776,-382.1661985,0.0002,2]
[315416992,1709021445785,-500.0,0.0002,2]
[315416993,1709021445794,-500.0,0.0002,2]
[315416995,1709021445803,-500.0,0.0002,2]
[315416997,1709021445813,-18293.64,0.0002,2]
[315416999,1709021445822,-151.0,0.0002,2]
[315417015,1709021445951,-968.79,0.0002,2]
[315417018,1709021445961,-500.0,0.0002,2]
[315417020,1709021445970,-961.57,0.0002,2]
[315417023,1709021445981,-694.35,0.0002,2]
[315417026,1709021445990,-500.0,0.0002,2]
[315417028,1709021445999,-500.0,0.0002,2]
[315417030,1709021446007,-517.68,0.0002,2]
[315417032,1709021446017,-728.43,0.0002,2]
[315417034,1709021446026,-500.0,0.0002,2]
[315417036,1709021446034,-9364.32,0.0002,2]
[315417038,1709021446045,-500.0,0.0002,2]
[315417040,1709021446054,-1356.05,0.0002,2]
[315417042,1709021446063,-169.21456967,0.0002,2]
[315417044,1709021446072,-1053.2,0.0002,2]
[315417046,1709021446081,-336.69898198,0.0002,2]
[315417048,1709021446094,-398.21029264,0.0002,2]
[315417050,1709021446103,-500.0,0.0002,2]
[315417052,1709021446112,-587.72307026,0.0002,2]
[315417054,1709021446121,-3787.63,0.0002,2]
[315417056,1709021446130,-151.0,0.0002,2]
[315417058,1709021446139,-18667.35,0.0002,2]
[315417060,1709021446149,-6979.36,0.0002,2]
[315417062,1709021446158,-762.61,0.0002,2]
[315417064,1709021446168,-2431.52,0.0002,2]
[315417066,1709021446177,-4664.63,0.0002,2]
[315417068,1709021446187,-500.0,0.0002,2]
[315417070,1709021446197,-1390.41,0.0002,2]
[315417072,1709021446206,-500.0,0.0002,2]
[315417074,1709021446216,-2382.51,0.0002,2]
[315417076,1709021446225,-1795.12,0.0002,2]
[315417078,1709021446234,-500.0,0.0002,2]
[315417080,1709021446244,-500.0,0.0002,2]
[315417082,1709021446253,-500.0,0.0002,2]
[315417084,1709021446262,-3077.62,0.0002,2]
[315417086,1709021446270,-500.0,0.0002,2]
[315417088,1709021446279,-3562.24,0.0002,2]
[315417090,1709021446288,-644.23,0.0002,2]
[315417092,1709021446297,-1853.52,0.0002,2]
[315417094,1709021446306,-500.0,0.0002,2]
[315417096,1709021446315,-1921.56,0.0002,2]
[315417098,1709021446324,-500.0,0.0002,2]
[315417099,1709021446333,-651.04,0.0002,2]
[315417101,1709021446342,-500.0,0.0002,2]
[315417103,1709021446351,-500.0,0.0002,2]
[315417105,1709021446360,-1690.76,0.0002,2]
[315417107,1709021446370,-1869.88,0.0002,2]
[315417110,1709021446380,-500.0,0.0002,2]
[315417111,1709021446389,-500.0,0.0002,2]
[315417114,1709021446398,-1789.42914096,0.0002004,2]
[315417116,1709021446407,-50000.0,0.00020047,5]
[315417117,1709021446417,-1443.405726,0.00020047,2]
[315417119,1709021446428,-1443.405726,0.00020047,2]
[315417121,1709021446438,-378.226304,0.00020047,2]
[315417123,1709021446447,-378.226304,0.00020047,2]
[315417126,1709021446457,-151.0,0.00020047,2]
[315417128,1709021446466,-151.0,0.00020047,2]
[315417130,1709021446476,-500.0,0.00020065,2]
[315417132,1709021446485,-166.666666,0.00020076,2]
[315417134,1709021446495,-256.63,0.00020088,7]
[315417136,1709021446505,-1459.24829283,0.00020173,2]
[315417138,1709021446514,-500.0,0.00020188,2]
[315417140,1709021446523,-153.0,0.00020192,2]
[315417142,1709021446532,-306.0,0.00020192,2]
[315417144,1709021446542,-153.0,0.00020192,2]
[315417146,1709021446551,-153.0,0.00020192,2]
[315417148,1709021446560,-153.0,0.00020192,2]
[315417150,1709021446569,-153.0,0.00020192,2]
[315417151,1709021446578,-153.0,0.00020192,2]
[315417153,1709021446587,-308.2480849,0.00020192,2]
[315417156,1709021446597,-153.0,0.00020192,2]
[315417158,1709021446606,-153.0,0.00020192,2]
[315417159,1709021446615,-153.0,0.00020192,2]
[315417161,1709021446624,-153.0,0.00020192,2]
[315417163,1709021446633,-153.0,0.00020192,2]
[315417166,1709021446643,-153.0,0.00020192,2]
[315417167,1709021446652,-153.0,0.00020192,2]
[315417169,1709021446662,-153.0,0.00020192,2]
[315417171,1709021446671,-153.2073565,0.00020192,2]
[315417173,1709021446680,-153.0,0.00020192,2]
[315417175,1709021446689,-153.0,0.00020192,2]
[315417178,1709021446699,-153.0,0.00020192,2]
[315417180,1709021446708,-153.30156,0.00020192,2]
[315417182,1709021446717,-153.0,0.00020192,2]
[315417183,1709021446727,-295.2105092,0.00020192,2]
[315417186,1709021446737,-418.8771798,0.00020192,2]
[315417187,1709021446746,-228.7237367,0.00020192,2]
[315417189,1709021446756,-153.0,0.00020192,2]
[315417191,1709021446765,-153.0,0.00020192,2]
[315417193,1709021446774,-153.0,0.00020192,2]
[315417195,1709021446783,-153.0,0.00020192,2]
[315417197,1709021446792,-153.0,0.00020192,2]
[315417199,1709021446801,-153.0,0.00020192,2]
[315417201,1709021446810,-153.0,0.00020192,2]
[315417203,1709021446819,-153.0,0.00020192,2]
[315417205,1709021446828,-153.0,0.00020192,2]
[315417207,1709021446837,-153.0,0.00020192,2]
[315417209,1709021446846,-153.0,0.00020192,2]
[315417211,1709021446855,-153.0,0.00020192,2]
[315417213,1709021446865,-153.0,0.00020192,2]
[315417215,1709021446874,-387.8836946,0.00020192,2]
[315417217,1709021446883,-153.0,0.00020192,2]
[315417219,1709021446892,-153.0,0.00020192,2]
[315417221,1709021446901,-153.0,0.00020192,2]
[315417223,1709021446911,-153.0,0.00020192,2]
[315417225,1709021446920,-153.0,0.00020192,2]
[315417227,1709021446929,-153.0,0.00020192,2]
[315417229,1709021446938,-153.0,0.00020192,2]
[315417231,1709021446947,-426.8916076,0.00020192,2]
[315417233,1709021446956,-256.9223019,0.00020192,2]
[315417234,1709021446965,-153.0,0.00020192,2]
[315417236,1709021446974,-359.9410765,0.00020192,2]
[315417238,1709021446984,-153.0,0.00020192,2]
[315417240,1709021446993,-153.0,0.00020192,2]
[315417242,1709021447002,-1789.42914096,0.00020212,2]
[315417245,1709021447011,-500.0,0.00020273,2]
[315417246,1709021447020,-733.11,0.00020273,2]
[315417248,1709021447029,-500.0,0.00020273,2]
[315417250,1709021447038,-166.56,0.00020273,2]
[315417253,1709021447048,-500.0,0.00020273,2]
[315417255,1709021447058,-500.0,0.00020273,2]
[315417257,1709021447067,-500.0,0.00020273,2]
[315417259,1709021447075,-1333.94,0.00020273,2]
[315417261,1709021447084,-500.0,0.00020273,2]
[315417263,1709021447093,-500.0,0.00020273,2]
[315417265,1709021447102,-500.0,0.00020273,2]
[315417266,1709021447112,-500.0,0.00020273,2]
[315417268,1709021447121,-741.17,0.00020273,2]
[315417270,1709021447130,-1512.61,0.00020273,2]
[315417272,1709021447139,-500.0,0.00020273,2]
[315417274,1709021447148,-541.32,0.00020273,2]
[315417276,1709021447156,-824.75,0.00020273,2]
[315417278,1709021447165,-3542.19,0.00020273,2]
[315417280,1709021447175,-500.0,0.00020273,2]
[315417282,1709021447184,-1510.02,0.00020273,2]
[315417284,1709021447193,-2530.06,0.00020273,2]
[315417286,1709021447202,-500.0,0.00020273,2]
[315417288,1709021447211,-586.59,0.00020273,2]
[315417290,1709021447220,-500.0,0.00020273,2]
[315417292,1709021447230,-660.54,0.00020273,2]
[315417294,1709021447239,-525.27752141,0.00020273,2]
[315417296,1709021447248,-614.93,0.00020273,2]
[315417298,1709021447257,-500.0,0.00020273,2]
[315417300,1709021447266,-500.0,0.00020273,2]
[315417302,1709021447276,-231.23191091,0.00020273,2]
[315417304,1709021447285,-500.0,0.00020273,2]
[315417306,1709021447294,-1504.02,0.00020273,2]
[315417308,1709021447303,-500.0,0.00020273,2]
[315417310,1709021447313,-500.0,0.00020273,2]
[315417312,1709021447322,-547.67624046,0.00020273,2]
[315417314,1709021447331,-448.32673264,0.00020273,2]
[315417316,1709021447340,-1709.67,0.00020273,2]
[315417318,1709021447349,-282.98479173,0.00020273,2]
[315417320,1709021447358,-524.16,0.00020273,2]
[315417322,1709021447367,-1626.61,0.00020273,2]
[315417324,1709021447377,-848.22,0.00020273,2]
[315417326,1709021447386,-500.0,0.00020273,2]
[315417328,1709021447395,-1376.52,0.00020273,2]
[315417330,1709021447404,-500.0,0.00020273,2]
[315417332,1709021447414,-18293.64,0.00020273,2]
[315417334,1709021447427,-968.79,0.00020273,2]
[315417336,1709021447436,-500.0,0.00020273,2]
[315417338,1709021447445,-961.57,0.00020273,2]
[315417340,1709021447454,-694.35,0.00020273,2]
[315417342,1709021447465,-500.0,0.00020273,2]
[315417344,1709021447474,-500.0,0.00020273,2]
[315417346,1709021447483,-728.43,0.00020273,2]
[315417348,1709021447493,-293.09620288,0.00020273,2]
[315417350,1709021447504,-9364.32,0.00020273,2]
[315417352,1709021447515,-500.0,0.00020273,2]
[315417355,1709021447525,-1356.05,0.00020273,2]
[315417357,1709021447535,-1053.2,0.00020273,2]
[315417359,1709021447546,-500.0,0.00020273,2]
[315417361,1709021447555,-3787.63,0.00020273,2]
[315417363,1709021447563,-18667.35,0.00020273,2]
[315417365,1709021447572,-6979.36,0.00020273,2]
[315417367,1709021447582,-762.61,0.00020273,2]
[315417369,1709021447592,-2431.52,0.00020273,2]
[315417371,1709021447601,-4664.63,0.00020273,2]
[315417373,1709021447611,-492.17596096,0.00020273,2]
[315417375,1709021447620,-1390.41,0.00020273,2]
[315417377,1709021447629,-500.0,0.00020273,2]
[315417379,1709021447638,-2382.51,0.00020273,2]
[315417380,1709021447648,-1795.12,0.00020273,2]
[315417382,1709021447657,-500.0,0.00020273,2]
[315417384,1709021447667,-500.0,0.00020273,2]
[315417386,1709021447676,-3077.62,0.00020273,2]
[315417388,1709021447685,-391.84467758,0.00020273,2]
[315417390,1709021447694,-3562.24,0.00020273,2]
[315417392,1709021447704,-644.23,0.00020273,2]
[315417394,1709021447713,-1853.52,0.00020273,2]
[315417396,1709021447722,-500.0,0.00020273,2]
[315417398,1709021447731,-1921.56,0.00020273,2]
[315417400,1709021447740,-500.0,0.00020273,2]
[315417402,1709021447749,-651.04,0.00020273,2]
[315417405,1709021447759,-500.0,0.00020273,2]
[315417406,1709021447768,-1690.76,0.00020273,2]
[315417408,1709021447777,-1869.88,0.00020273,2]
[315417410,1709021447786,-158.76788744,0.00020273,2]
[315417412,1709021447796,-575.04533247,0.00020273,2]
[315417414,1709021447805,-200.6117409,0.00020288,2]
[315417416,1709021447815,-500.0,0.0002031,2]
[315417418,1709021447824,-151.0,0.00020334,2]
[315417420,1709021447833,-96072.54768136,0.00020374,2]
[315417422,1709021447842,-151.200963,0.00020374,2]
[315417424,1709021447851,-180.911797,0.00020374,2]
[315417426,1709021447860,-180.911797,0.00020374,2]
[315417428,1709021447869,-1443.405726,0.00020374,2]
[315417430,1709021447879,-1443.405726,0.00020374,2]
[315417432,1709021447888,-378.226304,0.00020374,2]
[315417434,1709021447898,-378.226304,0.00020374,2]
[315417436,1709021447907,-151.0,0.00020374,2]
[315417438,1709021447915,-151.0,0.00020374,2]
[315417439,1709021447925,-1789.42914096,0.00020384,2]
[315417441,1709021447934,-500.0,0.00020433,2]
[315417443,1709021447943,-153.0,0.00020466,2]
[315417445,1709021447952,-153.0,0.00020466,2]
[315417447,1709021447961,-153.0,0.00020466,2]
[315417449,1709021447970,-153.0,0.00020466,2]
[315417451,1709021447978,-153.0,0.00020466,2]
[315417453,1709021447988,-306.0,0.00020466,2]
[315417455,1709021447997,-153.0,0.00020466,2]
[315417456,1709021448006,-153.0,0.00020466,2]
[315417458,1709021448015,-153.0,0.00020466,2]
[315417460,1709021448024,-153.0,0.00020466,2]
[315417462,1709021448033,-175.5,0.000205,2]
[315417464,1709021448043,-166.666666,0.00020524,2]
[315417466,1709021448052,-500.0,0.00020546,2]
[315417469,1709021448060,-500.0,0.00020547,2]
[315417470,1709021448158,-733.11,0.00020547,2]
[315417471,1709021448169,-182.70269189,0.00020547,2]
[315417472,1709021448179,-500.0,0.00020547,2]
[315417473,1709021448188,-500.0,0.00020547,2]
[315417474,1709021448199,-567.61733427,0.00020547,2]
[315417475,1709021448209,-1333.94,0.00020547,2]
[315417476,1709021448218,-500.0,0.00020547,2]
[315417477,1709021448227,-500.0,0.00020547,2]
[315417478,1709021448237,-513.86185079,0.00020547,2]
[315417479,1709021448246,-260.25765248,0.00020547,2]
[315417480,1709021448255,-741.17,0.00020547,2]
[315417481,1709021448264,-1512.61,0.00020547,2]
[315417482,1709021448274,-541.32,0.00020547,2]
[315417484,1709021448285,-824.75,0.00020547,2]
[315417485,1709021448294,-3542.19,0.00020547,2]
[315417487,1709021448303,-500.0,0.00020547,2]
[315417489,1709021448313,-1510.02,0.00020547,2]
[315417491,1709021448323,-2530.06,0.00020547,2]
[315417493,1709021448332,-586.59,0.00020547,2]
[315417495,1709021448342,-500.0,0.00020547,2]
[315417497,1709021448352,-660.54,0.00020547,2]
[315417499,1709021448362,-614.93,0.00020547,2]
[315417501,1709021448371,-224.5571896,0.00020547,2]
[315417503,1709021448380,-338.47277277,0.00020547,2]
[315417505,1709021448390,-1504.02,0.00020547,2]
[315417507,1709021448399,-500.0,0.00020547,2]
[315417509,1709021448408,-500.0,0.00020547,2]
[315417511,1709021448417,-1709.67,0.00020547,2]
[315417513,1709021448428,-524.16,0.00020547,2]
[315417515,1709021448438,-1626.61,0.00020547,2]
[315417517,1709021448447,-848.22,0.00020547,2]
[315417518,1709021448456,-500.0,0.00020547,2]
[315417520,1709021448465,-1376.52,0.00020547,2]
[315417522,1709021448475,-500.0,0.00020547,2]
[315417524,1709021448484,-18293.64,0.00020547,2]
[315417526,1709021448493,-968.79,0.00020547,2]
[315417528,1709021448503,-500.0,0.00020547,2]
[315417530,1709021448512,-961.57,0.00020547,2]
[315417532,1709021448523,-694.35,0.00020547,2]
[315417534,1709021448532,-500.0,0.00020547,2]
[315417536,1709021448541,-500.0,0.00020547,2]
[315417538,1709021448550,-728.43,0.00020547,2]
[315417540,1709021448559,-9364.32,0.00020547,2]
[315417542,1709021448568,-500.0,0.00020547,2]
[315417544,1709021448577,-1356.05,0.00020547,2]
[315417546,1709021448586,-1053.2,0.00020547,2]
[315417548,1709021448595,-3787.63,0.00020547,2]
[315417550,1709021448604,-18667.35,0.00020547,2]
[315417552,1709021448614,-6979.36,0.00020547,2]
[315417554,1709021448623,-762.61,0.00020547,2]
[315417556,1709021448632,-2431.52,0.00020547,2]
[315417558,1709021448641,-1390.41,0.00020547,2]
[315417560,1709021448650,-500.0,0.00020547,2]
[315417562,1709021448659,-2382.51,0.00020547,2]
[315417564,1709021448674,-1795.12,0.00020547,2]
[315417566,1709021448683,-500.0,0.00020547,2]
[315417568,1709021448692,-500.0,0.00020547,2]
[315417570,1709021448701,-3077.62,0.00020547,2]
[315417572,1709021448710,-3562.24,0.00020547,2]
[315417574,1709021448719,-644.23,0.00020547,2]
[315417576,1709021448729,-1853.52,0.00020547,2]
[315417578,1709021448738,-235.38018493,0.00020547,2]
[315417579,1709021448747,-1921.56,0.00020547,2]
[315417581,1709021448756,-500.0,0.00020547,2]
[315417583,1709021448766,-651.04,0.00020547,2]
[315417585,1709021448775,-500.0,0.00020547,2]
[315417587,1709021448784,-1690.76,0.00020547,2]
[315417589,1709021448794,-1869.88,0.00020547,2]
[315417591,1709021448803,-1789.42914096,0.00020556,2]
[315417593,1709021448813,-500.0,0.00020556,2]
[315417595,1709021448822,-552.59497447,0.00020573,2]
[315417597,1709021448831,-500.0,0.00020573,2]
[315417599,1709021448840,-500.0,0.00020573,2]
[315417601,1709021448849,-500.0,0.00020573,2]
[315417603,1709021448858,-500.0,0.00020573,2]
[315417605,1709021448867,-500.0,0.00020573,2]
[315417607,1709021448877,-500.0,0.00020573,2]
[315417609,1709021448886,-500.0,0.00020573,2]
[315417611,1709021448895,-500.0,0.00020573,2]
[315417613,1709021448904,-544.29732405,0.00020573,2]
[315417615,1709021448914,-500.0,0.00020573,2]
[315417617,1709021448923,-500.0,0.00020573,2]
[315417619,1709021448936,-500.0,0.00020573,2]
[315417621,1709021448945,-500.0,0.00020573,2]
[315417623,1709021448954,-500.0,0.00020573,2]
[315417625,1709021448963,-500.0,0.00020573,2]
[315417626,1709021448972,-500.0,0.00020573,2]
[315417628,1709021448981,-500.0,0.00020573,2]
[315417630,1709021448991,-500.0,0.00020573,2]
[315417632,1709021449000,-500.0,0.00020573,2]
[315417634,1709021449009,-555.33526355,0.00020573,2]
[315417636,1709021449018,-500.0,0.00020573,2]
[315417638,1709021449028,-500.0,0.00020573,2]
[315417640,1709021449037,-500.0,0.00020573,2]
[315417642,1709021449047,-500.0,0.00020573,2]
[315417644,1709021449058,-500.0,0.00020573,2]
[315417646,1709021449067,-500.0,0.00020573,2]
[315417648,1709021449077,-500.0,0.00020573,2]
[315417649,1709021449086,-500.0,0.00020573,2]
[315417651,1709021449095,-500.0,0.00020573,2]
[315417653,1709021449104,-500.0,0.00020573,2]
[315417655,1709021449113,-500.0,0.00020573,2]
[315417657,1709021449122,-358.76140463,0.00020573,2]